bitfinex/quotes_ETHUSD_20250605
["timestamp","ask_amount","ask_price","bid_price","bid_amount"]
[1749149203370,40.76060181,2575.2,2575.1,0.02]
[1749149203612,40.39168592,2575.2,2575.1,0.02]
[1749149203785,40.76025151,2575.2,2575.1,0.02]
[1749149204495,0.55,2574.9,2574.1,0.02]
[1749149204678,9.76572035,2574.4,2574.1,3.90481544]
[1749149204883,8.341,2574.3,2574.2,3.88469723]
[1749149206127,5.28268216,2574.4,2574.3,3.88455114]
[1749149206433,11.87868216,2574.4,2574.3,3.88455114]
[1749149208503,11.87868216,2574.4,2574.1,3.90482186]
[1749149208827,11.87868216,2574.4,2574.2,3.88460163]
[1749149208828,8.392,2574.4,2574.2,3.88460163]
[1749149209030,2.458,2574.8,2574.3,3.88446165]
[1749149209240,1.796,2574.7,2574.6,3.8840985]
[1749149209445,8.392,2574.7,2574.6,3.8840985]
[1749149210036,1.796,2574.7,2574.6,3.8840985]
[1749149210204,8.392,2574.7,2574.6,3.8840985]
[1749149210731,1.796,2574.7,2574.6,3.8840985]
[1749149210907,1.796,2574.7,2574.6,4.2137985]
[1749149211108,0.7829,2575.3,2575.2,3.88319353]
[1749149211333,10.26884366,2575.3,2574.6,4.21378308]
[1749149211528,10.85866401,2575.3,2574.7,3.88394764]
[1749149211696,8.393,2575.2,2575.1,3.88330554]
[1749149211897,1.797,2575.2,2575.1,3.88334433]
[1749149212411,8.393,2575.2,2575.1,3.88334433]
[1749149214538,18.15872035,2575.2,2575.0,3.8834459]
[1749149214738,18.15872035,2575.2,2574.9,3.88362841]
[1749149215038,1.81587204,2575.1,2575.0,3.88349514]
[1749149215402,18.15872035,2575.2,2575.0,3.88349514]
[1749149216042,18.15872035,2575.2,2575.1,3.88334433]
[1749149216215,18.15872035,2575.2,2575.0,3.88335769]
[1749149216404,18.15872035,2575.2,2574.9,3.8835458]
[1749149216604,18.15872035,2575.2,2575.0,3.88341028]
[1749149216798,18.15872035,2575.2,2574.6,0.3297]
[1749149216799,18.15872035,2575.2,2575.1,3.88334433]
[1749149217524,18.15772035,2575.2,2575.1,3.88334433]
[1749149218142,10.13496243,2575.4,2575.3,3.88293293]
[1749149218305,18.15772035,2575.4,2575.3,3.88293293]
[1749149218505,18.52696243,2575.4,2575.2,3.88310877]
[1749149218736,18.15772035,2575.4,2575.2,3.88310877]
[1749149218934,19.88770886,2575.4,2575.0,3.88349509]
[1749149219133,0.36924208,2575.3,2574.9,3.88360368]
[1749149219336,0.36924208,2575.3,2574.7,3.88394764]
[1749149219337,9.76572035,2575.1,2574.7,3.88394764]
[1749149219539,6.595,2575.0,2574.9,3.88363569]
[1749149219721,6.595,2575.0,2574.9,3.88364596]
[1749149221239,6.595,2575.0,2574.8,3.88373763]
[1749149221415,6.595,2575.0,2574.6,4.21378183]
[1749149221416,8.23107204,2575.0,2574.6,4.21378183]
[1749149221747,8.60031412,2575.0,2574.6,0.3297]
[1749149221909,8.60031412,2575.0,2574.9,3.88364596]
[1749149222108,8.60031412,2575.0,2574.8,3.88371137]
[1749149222838,1.793,2575.1,2575.0,3.88349514]
[1749149223030,8.387,2575.1,2575.0,3.88349514]
[1749149223715,8.387,2575.1,2575.0,4.21319514]
[1749149223925,8.387,2575.1,2575.0,3.88349514]
[1749149224244,8.387,2575.1,2574.9,3.88364596]
[1749149224245,8.387,2575.1,2574.8,0.3297]
[1749149224457,19.41674116,2575.1,2574.8,3.88370053]
[1749149224955,0.37031122,2575.0,2574.6,3.88403238]
[1749149225200,23.30016922,2575.1,2574.6,3.8840985]
[1749149225201,9.76572035,2574.8,2574.6,3.8840985]
[1749149225478,6.594,2574.7,2574.6,3.8840985]
[1749149226068,6.594,2574.7,2574.2,0.3297]
[1749149226277,9.76572035,2574.5,2574.3,3.88455114]
[1749149226565,3.42897204,2574.6,2574.5,3.88424936]
[1749149226870,8.387,2574.6,2574.5,3.88424936]
[1749149227866,0.37073739,2575.0,2574.9,3.88364596]
[1749149228116,8.75673739,2575.0,2574.9,3.88364596]
[1749149228317,0.37073739,2575.0,2574.9,3.88364596]
[1749149228845,8.386,2575.0,2574.9,3.88364596]
[1749149229418,8.75714489,2575.0,2574.9,3.88364596]
[1749149230847,8.386,2575.0,2574.9,3.88364596]
[1749149231048,2.16432673,2575.0,2574.9,3.88364596]
[1749149231253,8.75732673,2575.0,2574.9,3.88364596]
[1749149232360,8.75632673,2575.0,2574.9,3.88364596]
[1749149232655,2.16432673,2575.0,2574.9,3.88364596]
[1749149233037,8.75632673,2575.0,2574.9,3.88364596]
[1749149233237,2.16432673,2575.0,2574.9,3.88364596]
[1749149233539,8.385,2575.0,2574.9,3.88364596]
[1749149235136,0.37185657,2575.4,2575.3,3.88304275]
[1749149235332,6.591,2575.4,2575.3,3.88304275]
[1749149236392,1.793,2576.1,2576.0,3.88198757]
[1749149236602,8.7556429,2576.1,2576.0,3.88198757]
[1749149236782,10.73350261,2576.1,2576.0,3.88198757]
[1749149237394,4.14250261,2576.1,2576.0,3.88198757]
[1749149237601,10.73350261,2576.1,2576.0,3.88198757]
[1749149237959,10.73250261,2576.1,2576.0,3.88198757]
[1749149238986,4.14250261,2576.1,2576.0,3.88198757]
[1749149239305,10.73250261,2576.1,2576.0,3.88198757]
[1749149240303,4.7242892,2576.5,2576.1,3.88173693]
[1749149240304,1.793,2576.3,2576.1,3.88173693]
[1749149240606,16.35572035,2576.2,2575.6,0.3297]
[1749149240780,16.35572035,2576.2,2576.0,3.88190003]
[1749149240980,18.20771227,2576.2,2576.1,3.88183688]
[1749149241304,11.61771227,2576.2,2576.1,3.88183688]
[1749149241502,8.44099192,2576.2,2576.1,3.88183688]
[1749149242579,6.589,2576.2,2576.1,4.21153688]
[1749149242993,1.793,2576.5,2576.4,3.88138487]
[1749149243392,8.382,2576.5,2576.4,3.88138487]
[1749149244309,8.27091831,2576.8,2576.4,3.88138487]
[1749149244509,8.38,2576.7,2576.6,3.88108359]
[1749149244678,4.43686387,2576.7,2576.6,3.88108359]
[1749149244884,11.02486387,2576.7,2576.6,3.88108359]
[1749149245080,1.792,2576.7,2576.6,3.88108359]
[1749149245291,1.792,2576.7,2576.6,4.21078359]
[1749149245495,8.379,2576.7,2576.6,4.21078359]
[1749149246672,8.379,2576.7,2576.3,3.88142922]
[1749149247018,8.379,2576.7,2576.3,3.88143601]
[1749149247019,9.76572035,2576.5,2576.3,3.88143601]
[1749149247508,11.66094239,2576.5,2575.8,0.3297]
[1749149247746,9.76572035,2576.2,2576.1,3.88180719]
[1749149247909,16.35172035,2576.2,2576.1,3.88180719]
[1749149248274,16.35172035,2576.2,2576.0,3.88197381]
[1749149248612,16.35172035,2576.2,2576.1,3.88183688]
[1749149249213,16.35172035,2576.2,2576.0,3.88192325]
[1749149249797,16.35172035,2576.2,2576.1,3.88183688]
[1749149250290,16.35172035,2576.2,2575.8,0.3297]
[1749149250491,16.35172035,2576.2,2576.1,3.88183688]
[1749149250708,16.35172035,2576.2,2576.0,3.88184901]
[1749149251016,6.586,2576.2,2576.1,3.88183688]
[1749149251536,11.66094239,2576.5,2576.3,3.88142503]
[1749149251685,6.585,2576.4,2576.3,3.88153553]
[1749149252435,6.585,2576.4,2576.2,3.88165682]
[1749149252725,6.585,2576.4,2576.3,3.88153553]
[1749149252921,2.5995,2576.7,2575.8,4.21197868]
[1749149253107,6.585,2576.6,2576.4,3.88123585]
[1749149253307,6.585,2576.6,2576.5,3.88120359]
[1749149254196,6.585,2576.6,2576.4,3.88129997]
[1749149254603,2.5995,2576.7,2576.5,3.88123423]
[1749149254796,1.792,2576.7,2576.6,3.88108359]
[1749149255126,12.376,2576.7,2576.6,3.88108359]
[1749149255285,5.792,2576.7,2576.6,3.88108359]
[1749149255492,12.376,2576.7,2576.6,3.88108359]
[1749149256225,8.376,2576.7,2576.6,3.88108359]
[1749149256385,1.792,2576.7,2576.6,3.88108359]
[1749149256800,8.376,2576.7,2576.6,3.88108359]
[1749149257195,1.792,2576.7,2576.6,3.88108359]
[1749149257486,8.375,2576.7,2576.6,3.88108359]
[1749149259132,8.375,2576.7,2576.5,3.88113852]
[1749149259340,8.375,2576.7,2576.6,3.88108359]
[1749149260619,8.375,2576.7,2576.4,3.88128181]
[1749149260620,11.03027204,2576.7,2576.4,3.88128181]
[1749149260930,8.375,2576.7,2576.6,3.88108359]
[1749149263902,1.792,2576.7,2576.6,3.88108359]
[1749149264102,8.373,2576.7,2576.6,3.88108359]
[1749149264905,8.373,2576.7,2576.5,3.88120323]
[1749149264906,8.373,2576.7,2576.5,3.88117436]
[1749149265613,18.13872035,2576.7,2576.3,3.88148355]
[1749149265812,0.7654,2576.6,2576.5,3.88123423]
[1749149266053,0.7654,2576.6,2576.0,0.3297]
[1749149266201,0.7654,2576.6,2576.3,3.88147135]
[1749149266552,9.76572035,2576.4,2576.3,3.88153553]
[1749149267252,10.12851289,2576.4,2576.3,3.88153553]
[1749149267464,11.68566987,2576.4,2575.7,0.3297]
[1749149267634,6.94279325,2576.3,2575.7,4.21210785]
[1749149267952,6.58,2576.3,2576.2,3.8816862]
[1749149268461,6.94279821,2576.3,2576.2,3.8816862]
[1749149268743,6.58,2576.3,2576.2,3.8816862]
[1749149269043,6.94279863,2576.3,2576.2,3.8816862]
[1749149269244,6.58,2576.3,2576.2,3.8816862]
[1749149269449,6.9430484,2576.3,2576.2,3.8816862]
[1749149269811,6.58,2576.3,2576.2,3.8816862]
[1749149270009,0.72612982,2576.3,2576.2,3.8816862]
[1749149270210,7.3061218,2576.3,2576.2,3.8816862]
[1749149270451,6.94306556,2576.3,2576.2,3.8816862]
[1749149271461,6.94306556,2576.3,2576.2,4.98773551]
[1749149271462,0.36306556,2576.3,2576.2,4.98773551]
[1749149271808,0.36306556,2576.3,2576.2,20.98773551]
[1749149272213,0.36306556,2576.3,2576.2,21.53773551]
[1749149272411,0.36306556,2576.3,2576.2,31.30345586]
[1749149278062,0.86306556,2576.3,2576.2,31.30345586]
[1749149280039,0.02,2576.9,2576.8,3.88078236]
[1749149280294,0.02,2576.9,2576.8,30.36428095]
[1749149280469,0.02,2576.9,2576.8,30.91428095]
[1749149280839,0.02,2576.9,2576.8,31.37963877]
[1749149281341,0.02,2576.9,2576.8,31.76802106]
[1749149281745,0.02,2576.9,2576.8,31.30266324]
[1749149282168,0.80981024,2577.0,2576.9,20.76033176]
[1749149282447,0.80981024,2577.0,2576.9,24.22978672]
[1749149283465,0.66230024,2577.0,2576.9,24.22978672]
[1749149284671,6.574,2577.6,2577.5,3.87972841]
[1749149286677,0.02,2577.9,2577.8,3.8792769]
[1749149286878,6.593,2577.9,2577.8,3.8792769]
[1749149288511,6.593,2577.9,2577.8,3.6292769]
[1749149291416,6.592,2577.9,2577.8,4.38014463]
[1749149291775,0.02,2577.9,2577.8,4.38014463]
[1749149292101,6.592,2577.9,2577.8,4.38014463]
[1749149293546,6.592,2577.9,2577.8,3.6292769]
[1749149293741,7.3696,2577.9,2577.8,3.6292769]
[1749149294960,17.13532035,2577.9,2577.6,3.87951222]
[1749149295166,0.7776,2577.8,2577.5,3.87960501]
[1749149295379,2.879036,2577.8,2577.7,3.87942739]
[1749149295725,0.7776,2577.8,2577.7,3.87942739]
[1749149295966,7.3476,2577.8,2577.7,3.87942739]
[1749149296275,0.7776,2577.8,2577.7,3.87942739]
[1749149296434,7.3476,2577.8,2577.7,3.87942739]
[1749149296960,6.57,2577.8,2577.7,3.87942739]
[1749149297723,6.57,2577.8,2577.7,4.65532494]
[1749149298234,6.57,2577.8,2577.7,3.87942739]
[1749149298639,6.57,2577.8,2576.8,6.24407822]
[1749149298640,0.8029,2577.7,2577.5,3.87964201]
[1749149298845,0.8029,2577.7,2577.6,3.8795779]
[1749149299771,0.02,2577.9,2577.8,3.8792769]
[1749149299936,6.589,2577.9,2577.8,3.8792769]
[1749149300137,0.02,2577.9,2577.8,5.04310212]
[1749149300342,6.589,2577.9,2577.8,5.04310212]
[1749149300850,0.02,2577.9,2577.8,5.04310212]
[1749149301073,6.589,2577.9,2577.8,5.04310212]
[1749149301442,6.589,2577.9,2577.8,3.8792769]
[1749149304223,6.588,2577.9,2577.8,3.8792769]
[1749149307066,6.587,2577.9,2577.8,3.8792769]
[1749149307870,0.02,2577.9,2577.8,19.8792769]
[1749149308271,6.587,2577.9,2577.8,19.8792769]
[1749149308473,6.587,2577.9,2577.8,22.28811433]
[1749149308851,0.02,2577.9,2577.8,22.28811433]
[1749149309048,6.587,2577.9,2577.8,22.28811433]
[1749149309680,6.587,2577.9,2577.8,19.8792769]
[1749149311054,6.586,2577.9,2577.8,20.2089769]
[1749149311535,0.02,2577.9,2577.8,20.2089769]
[1749149311846,0.02,2578.9,2578.7,3.87792298]
[1749149312034,11.29186017,2578.8,2578.7,3.87792298]
[1749149312239,6.566,2578.8,2578.7,3.87792298]
[1749149312573,0.02,2578.9,2578.8,3.8777726]
[1749149312737,6.586,2578.9,2578.8,4.2074726]
[1749149313372,0.02,2578.9,2578.8,4.2074726]
[1749149313540,0.02,2578.9,2578.8,20.2074726]
[1749149314043,6.585,2578.9,2578.8,20.2074726]
[1749149314239,0.7987,2579.9,2579.8,3.87626947]
[1749149314240,0.02,2579.9,2579.8,3.87626947]
[1749149314554,6.585,2579.9,2579.8,3.87626947]
[1749149314735,6.585,2579.9,2579.2,4.20681529]
[1749149314936,0.72559557,2579.8,2579.7,3.87637704]
[1749149315275,1.798,2579.9,2579.8,3.87626947]
[1749149315491,8.363,2579.9,2579.8,3.87626947]
[1749149315665,6.585,2579.9,2579.8,3.87626947]
[1749149315986,8.361,2579.9,2579.8,3.87626947]
[1749149316486,6.583,2579.9,2579.8,21.37262028]
[1749149316783,0.02,2579.9,2579.8,21.37262028]
[1749149317580,1.0,2580.6,2580.5,3.87521798]
[1749149317779,1.0,2580.6,2580.5,4.20491798]
[1749149317780,7.563,2580.6,2580.5,4.20491798]
[1749149318009,1.0,2580.6,2580.5,4.20491798]
[1749149318185,1.0,2580.6,2580.5,21.01294477]
[1749149319037,0.8107,2580.5,2579.8,1.49635081]
[1749149319255,6.561,2580.4,2580.1,3.87571219]
[1749149319454,1.778,2580.3,2580.0,3.87591371]
[1749149319794,0.8107,2580.1,2579.9,3.87604939]
[1749149319965,0.8107,2580.1,2580.0,3.87596899]
[1749149320379,7.3717,2580.1,2580.0,3.87596899]
[1749149320694,0.8128,2580.0,2578.8,3.8777726]
[1749149320856,9.76572035,2579.9,2579.8,3.87626947]
[1749149321895,9.76572035,2579.9,2579.5,3.87661838]
[1749149322197,9.76572035,2579.9,2579.7,3.8764056]
[1749149322391,11.47967238,2579.9,2579.8,3.87626947]
[1749149323692,6.56,2579.9,2579.6,4.20621825]
[1749149323895,6.56,2579.9,2579.8,3.87626947]
[1749149324096,1.778,2580.1,2580.0,3.87591615]
[1749149324259,8.338,2580.1,2580.0,3.87591615]
[1749149324786,8.338,2580.1,2579.9,3.87604791]
[1749149325181,9.1718,2580.1,2579.9,3.87604791]
[1749149325689,0.8205,2580.0,2579.3,16.0]
[1749149325864,0.8205,2580.0,2579.6,3.87642116]
[1749149326586,6.559,2579.9,2579.8,3.87626947]
[1749149326903,6.559,2579.9,2579.7,3.87633914]
[1749149327076,6.559,2579.9,2579.8,3.87626947]
[1749149327499,6.559,2579.9,2579.7,3.87634747]
[1749149327699,8.53470203,2579.9,2579.7,3.87634747]
[1749149327900,8.53470203,2579.9,2579.8,3.87626947]
[1749149329106,8.53470203,2579.9,2579.6,3.8765169]
[1749149329418,8.53470203,2579.9,2579.0,0.3297]
[1749149329419,8.53470203,2579.9,2579.3,3.87698356]
[1749149329712,9.76572035,2579.8,2579.4,3.87677515]
[1749149329862,8.53470203,2579.9,2579.6,3.87646483]
[1749149330669,8.53470203,2579.9,2579.5,3.87667609]
[1749149331096,12.4108271,2579.9,2579.4,3.87678959]
[1749149331601,1.32313271,2579.8,2579.4,3.87678959]
[1749149332462,1.32313271,2579.8,2579.0,0.3297]
[1749149332463,11.08885306,2579.8,2579.0,0.3297]
[1749149332767,4.69279529,2579.7,2579.2,3.87714484]
[1749149332962,5.8423684,2579.6,2579.2,3.87714484]
[1749149333271,8.335,2579.5,2579.4,3.87687059]
[1749149333598,8.335,2579.5,2579.3,3.87694519]
[1749149333772,8.335,2579.5,2579.2,3.87709635]
[1749149334098,8.335,2579.5,2579.4,3.87687059]
[1749149334319,8.335,2579.5,2579.3,3.87695811]
[1749149334607,8.335,2579.5,2579.2,3.87707339]
[1749149335005,8.335,2579.5,2579.3,3.87701769]
[1749149335698,8.335,2579.5,2579.2,3.87707088]
[1749149336101,8.335,2579.5,2578.9,3.87759565]
[1749149336285,8.335,2579.5,2579.3,3.87687607]
[1749149336680,8.335,2579.5,2579.4,3.87687059]
[1749149337077,0.8163,2579.7,2579.4,3.87687059]
[1749149337303,8.336,2579.6,2579.4,3.87687059]
[1749149338593,1.778,2579.6,2579.0,3.87746919]
[1749149338903,1.778,2579.6,2579.4,3.87687059]
[1749149338904,6.558,2579.5,2579.4,3.87687059]
[1749149341072,6.558,2579.5,2579.3,3.87695571]
[1749149341698,6.558,2579.5,2578.9,1.98775957]
[1749149341913,0.7903,2579.3,2578.6,0.3297]
[1749149342122,0.7903,2579.3,2579.2,3.87717121]
[1749149345309,8.331,2580.1,2580.0,3.87596899]
[1749149345504,8.331,2580.1,2579.9,3.87611922]
[1749149345727,0.8331,2580.0,2579.4,16.0]
[1749149345909,9.1469,2580.1,2579.5,3.87672029]
[1749149346115,9.1469,2580.1,2579.9,3.87597709]
[1749149346632,9.1469,2580.1,2580.0,3.87596899]
[1749149348039,9.1469,2580.1,2579.8,3.87625788]
[1749149348190,9.1469,2580.1,2579.3,4.20666239]
[1749149348191,9.1469,2580.1,2579.5,3.876576]
[1749149348392,11.79624698,2580.1,2579.9,3.87603813]
[1749149348592,11.79624698,2580.1,2579.8,3.87612017]
[1749149348593,11.42572153,2580.1,2579.8,3.87612017]
[1749149348830,0.36193284,2580.1,2579.8,0.3297]
[1749149349032,0.72382141,2580.2,2580.0,3.87589557]
[1749149349206,6.555,2580.1,2580.0,3.87589557]
[1749149350028,2.5872,2580.3,2580.1,3.87576367]
[1749149350210,6.555,2580.2,2580.1,3.87576367]
[1749149350938,2.5872,2580.3,2580.2,3.87566855]
[1749149351139,9.86638729,2580.3,2580.2,3.87566855]
[1749149351335,9.86639028,2580.3,2580.2,3.87566855]
[1749149351551,9.1422,2580.3,2580.2,3.87566855]
[1749149351848,9.50429487,2580.3,2580.2,3.87566855]
[1749149352056,9.50429714,2580.3,2580.2,3.87566855]
[1749149352242,9.1422,2580.3,2580.2,3.87566855]
[1749149353650,1.774,2580.3,2580.2,3.87566855]
[1749149353858,8.328,2580.3,2580.2,3.87566855]
[1749149358665,1.774,2580.3,2580.2,3.87566855]
[1749149358870,8.327,2580.3,2580.2,3.87566855]
[1749149359269,1.774,2580.3,2580.2,3.87566855]
[1749149359568,8.327,2580.3,2580.2,4.68378439]
[1749149359971,8.327,2580.3,2580.2,3.87566855]
[1749149360974,1.774,2580.3,2580.2,3.87566855]
[1749149361176,8.327,2580.3,2580.2,3.87566855]
[1749149361477,9.0962,2580.3,2580.2,3.87566855]
[1749149364288,9.0962,2580.3,2580.1,3.87578667]
[1749149364584,10.07818212,2580.3,2580.1,3.87578667]
[1749149364788,10.07818212,2580.3,2580.2,3.87566855]
[1749149365601,10.07818212,2580.3,2579.6,0.3297]
[1749149365755,9.76572035,2580.1,2579.9,3.8760591]
[1749149365946,9.76572035,2580.1,2579.9,3.8760516]
[1749149366144,9.76572035,2580.1,2579.4,0.3297]
[1749149366145,11.78629302,2580.1,2579.4,0.3297]
[1749149366342,9.76572035,2579.8,2579.2,0.3297]
[1749149366558,9.76572035,2579.8,2579.6,3.87649279]
[1749149366759,8.325,2579.7,2579.2,0.3297]
[1749149367070,8.325,2579.7,2579.6,3.87657001]
[1749149367251,14.01054023,2579.7,2579.2,0.3297]
[1749149367578,14.01054023,2579.7,2578.8,3.87771711]
[1749149367579,10.13407203,2579.7,2579.5,3.87664742]
[1749149367955,10.13407203,2579.7,2579.4,3.87679515]
[1749149368166,10.49607433,2579.7,2579.5,3.87671561]
[1749149368596,10.13407203,2579.7,2579.5,3.87671561]
[1749149368801,10.13407203,2579.7,2579.6,3.87657001]
[1749149369095,10.49602305,2579.7,2579.5,3.87662436]
[1749149369298,0.7639,2579.6,2579.5,3.87662436]
[1749149370499,0.7604,2579.9,2579.8,3.8761728]
[1749149370671,13.80644258,2579.9,2579.8,3.8761728]
[1749149370992,9.0824,2579.9,2579.8,3.8761728]
[1749149371159,9.80641125,2579.9,2579.8,3.8761728]
[1749149371359,9.44440684,2579.9,2579.8,3.8761728]
[1749149371574,9.0824,2579.9,2579.8,3.8761728]
[1749149372313,2.5314,2579.9,2579.8,3.8761728]
[1749149372523,0.7604,2579.9,2579.8,3.8761728]
[1749149372720,0.8311,2580.2,2580.1,3.87581876]
[1749149373012,6.96442392,2580.2,2580.1,3.87581876]
[1749149373224,13.1531,2580.2,2580.1,3.87581876]
[1749149373526,13.87772423,2580.2,2580.1,3.87581876]
[1749149373819,9.8777128,2580.2,2580.1,3.87581876]
[1749149373975,9.0466128,2580.2,2580.1,3.87581876]
[1749149374175,9.04660359,2580.2,2580.1,3.87581876]
[1749149374389,9.04673652,2580.2,2580.1,3.87581876]
[1749149374598,8.68436955,2580.2,2580.1,3.87581876]
[1749149374806,1.771,2580.2,2580.1,3.87581876]
[1749149375178,1.771,2580.4,2580.3,3.87551835]
[1749149375379,9.04565054,2580.4,2580.3,3.87551835]
[1749149375683,8.68332527,2580.4,2580.3,3.87551835]
[1749149375883,9.04564096,2580.4,2580.3,3.87551835]
[1749149376097,9.0456409,2580.4,2580.3,3.87551835]
[1749149376278,8.68332021,2580.4,2580.3,3.87551835]
[1749149376474,2.13331909,2580.4,2580.3,3.87551835]
[1749149376679,2.48559097,2580.5,2580.4,3.87536815]
[1749149376914,1.73081731,2580.6,2580.5,3.87521798]
[1749149377086,8.64311006,2580.6,2580.5,3.87521798]
[1749149377289,8.28081731,2580.6,2580.5,3.87521798]
[1749149378684,8.28081731,2580.6,2580.1,0.3297]
[1749149378883,8.28081731,2580.6,2580.5,3.87521798]
[1749149379186,8.64294975,2580.6,2580.5,3.87521798]
[1749149379413,9.00508214,2580.6,2580.5,3.87521798]
[1749149379920,8.28081731,2580.6,2580.5,3.87521798]
[1749149380492,8.64193946,2580.6,2580.5,3.87521798]
[1749149380688,1.73081731,2580.6,2580.5,3.87521798]
[1749149381103,8.27981731,2580.6,2580.5,3.87521798]
[1749149381625,1.73081731,2580.6,2580.5,3.87521798]
[1749149381785,8.27881731,2580.6,2580.5,3.87521798]
[1749149381990,8.27881731,2580.6,2580.5,4.65027388]
[1749149381991,1.73081731,2580.6,2580.5,4.65027388]
[1749149382231,1.73081731,2580.6,2580.5,20.97997388]
[1749149382399,8.27881731,2580.6,2580.5,20.97997388]
[1749149382604,1.73081731,2580.6,2580.5,20.97997388]
[1749149382931,0.02,2580.9,2580.8,3.87476751]
[1749149383232,6.568,2580.9,2580.8,4.64975104]
[1749149384032,6.568,2580.9,2580.8,3.87476751]
[1749149388248,6.568,2580.9,2580.5,20.20487101]
[1749149388547,6.568,2580.9,2580.8,3.87476751]
[1749149392249,6.565,2580.9,2580.8,3.87476751]
[1749149393054,0.02,2580.9,2580.8,3.87476751]
[1749149393217,6.565,2580.9,2580.8,3.87476751]
[1749149394153,0.02,2580.9,2580.8,3.87476751]
[1749149394363,6.564,2580.9,2580.8,3.87476751]
[1749149394562,0.02,2580.9,2580.8,3.87476751]
[1749149394855,6.564,2580.9,2580.8,3.87476751]
[1749149395827,0.02,2580.9,2580.8,3.87476751]
[1749149396033,6.564,2580.9,2580.8,3.87476751]
[1749149396229,8.1488,2580.9,2580.8,3.87476751]
[1749149397955,8.1488,2580.9,2580.5,19.87513169]
[1749149398188,8.1488,2580.9,2580.1,0.3297]
[1749149398189,8.1488,2580.9,2580.7,3.87477184]
[1749149398361,8.1488,2580.9,2580.8,3.87476751]
[1749149400140,8.1488,2580.9,2580.3,16.0]
[1749149400393,0.81488,2580.8,2580.6,3.87500699]
[1749149400683,1.6048,2580.9,2580.8,3.87476751]
[1749149400884,7.3144,2580.9,2580.8,3.87476751]
[1749149401231,6.92503893,2580.9,2580.8,3.87476751]
[1749149401434,6.563,2580.9,2580.8,3.87476751]
[1749149402328,0.02,2580.9,2580.8,3.87476751]
[1749149402541,0.02,2580.9,2580.6,0.3297]
[1749149402834,0.02,2580.9,2580.8,3.87476751]
[1749149403350,6.562,2580.9,2580.8,3.87476751]
[1749149404789,7.3636,2580.9,2580.8,3.87476751]
[1749149405081,7.72616384,2580.9,2580.8,3.87476751]
[1749149405233,7.72616058,2580.9,2580.8,3.87476751]
[1749149405632,7.72616038,2580.9,2580.8,3.87476751]
[1749149405851,0.38256038,2580.9,2580.8,3.87476751]
[1749149406069,0.02,2580.9,2580.8,4.64973517]
[1749149406511,0.02,2580.9,2580.8,9.66701805]
[1749149406655,6.562,2580.9,2580.8,9.66701805]
[1749149406852,6.562,2580.9,2580.8,26.41060767]
[1749149406853,0.02,2580.9,2580.8,26.41060767]
[1749149407112,0.02,2580.9,2580.8,26.21701805]
[1749149407608,0.02,2580.9,2580.8,20.97943517]
[1749149408956,0.02,2580.9,2580.8,21.52943517]
[1749149409181,0.02,2580.9,2580.8,20.97943517]
[1749149409383,0.02,2580.9,2580.8,25.66701805]
[1749149409596,0.02,2580.9,2580.8,26.21701805]
[1749149412671,0.02,2580.9,2580.8,23.22621076]
[1749149413000,0.02,2580.9,2580.8,27.10097827]
[1749149413967,0.02,2580.9,2580.8,26.55097827]
[1749149415202,0.02,2580.9,2580.8,21.86339539]
[1749149415398,0.02,2580.9,2580.8,18.85420268]
[1749149415598,0.02,2580.9,2580.8,23.54178556]
[1749149415831,0.02,2580.9,2580.8,24.09178556]
[1749149416108,0.02,2580.9,2580.8,24.55610962]
[1749149417212,0.02,2581.9,2581.8,3.87326671]
[1749149417712,6.558,2581.9,2581.8,3.87326671]
[1749149417912,6.558,2581.9,2581.6,3.87346261]
[1749149418112,0.8182,2581.8,2581.3,16.0]
[1749149418316,5.50578288,2581.8,2581.7,3.87341674]
[1749149418490,2.20117829,2581.8,2581.5,3.87365648]
[1749149419081,2.20117829,2581.8,2581.6,3.87355574]
[1749149419288,6.537,2581.7,2581.6,3.87355574]
[1749149420114,6.537,2581.7,2581.4,3.87375838]
[1749149420290,6.537,2581.7,2581.5,3.87365644]
[1749149420493,6.537,2581.7,2581.6,3.87356678]
[1749149423683,6.537,2581.7,2581.5,3.8737104]
[1749149423921,0.73552,2581.6,2581.5,3.87371683]
[1749149425341,0.7747,2581.5,2580.5,3.87521798]
[1749149425511,2.5407,2581.5,2580.8,16.0]
[1749149425717,0.8193,2581.3,2581.0,3.87441582]
[1749149425900,6.536,2581.2,2580.8,3.87468526]
[1749149426101,0.8193,2581.1,2580.9,3.87459969]
[1749149426447,0.8193,2581.1,2580.0,0.19333578]
[1749149426602,0.8193,2581.1,2581.0,3.87446726]
[1749149426797,0.36165312,2581.3,2581.2,3.87416705]
[1749149427136,2.5213,2581.5,2581.4,3.87386689]
[1749149427342,9.0563,2581.5,2581.4,3.87386689]
[1749149427637,0.7753,2581.9,2581.3,3.87398726]
[1749149427837,1.766,2581.8,2581.7,3.87341674]
[1749149428039,1.766,2581.8,2581.4,3.62081374]
[1749149428281,0.7753,2581.9,2581.6,3.87356678]
[1749149428463,0.02,2581.9,2581.8,3.87326671]
[1749149428752,6.556,2581.9,2581.8,3.87326671]
[1749149429151,6.556,2581.9,2581.7,3.87341674]
[1749149429152,6.556,2581.9,2581.4,3.87386689]
[1749149429359,6.556,2581.9,2581.8,3.87326671]
[1749149429555,0.7537,2581.9,2581.8,3.87326671]
[1749149429838,6.556,2581.9,2581.8,3.87326671]
[1749149430914,0.02,2581.9,2581.8,3.87326671]
[1749149431115,6.555,2581.9,2581.8,3.87326671]
[1749149431412,0.02,2581.9,2581.8,3.87326671]
[1749149431745,6.555,2581.9,2581.8,3.87326671]
[1749149432351,0.02,2581.9,2581.8,3.87326671]
[1749149432649,6.555,2581.9,2581.8,3.87326671]
[1749149434059,7.356,2581.9,2581.8,3.87326671]
[1749149434269,8.0916,2581.9,2581.8,3.87326671]
[1749149435667,6.554,2581.9,2581.8,3.87326671]
[1749149437220,6.553,2581.9,2581.8,3.87326671]
[1749149437650,0.02,2581.9,2581.8,3.87326671]
[1749149437828,6.553,2581.9,2581.8,3.87326671]
[1749149440381,0.02,2581.9,2581.8,3.87326671]
[1749149440532,7.3679,2581.9,2580.7,3.87491765]